[Event "Polish Youth G18 Championship 2023"]
[Site "Jastrzebia Gora"]
[Date "2023.03.15"]
[Round "5.12"]
[White "Uliasz, Katarzyna"]
[Black "Szczotka, Matylda"]
[Result "1-0"]
[ECO "A06"]
[WhiteElo "1670"]
[BlackElo "1451"]
[Annotator "NA RC COMBH"]
[PlyCount "141"]
[EventDate "2023.03.11"]
[EventType "swiss"]
[EventCountry "POL"]
[SourceTitle "playchess.com"]
[Source "ChessBase"]
[SourceQuality "1"]
[TimeControl "40/5400+30:1800+30"]

1. g3 {[%emt 0:00:15]} d5 {[%emt 0:00:07]} 2. Nf3 {[%emt 0:00:58]} Nf6 {[%emt 0:00:12]} 3. Bg2 {[%emt 0:00:05]} Nc6 {[%emt 0:00:18]} 4. d4 {[%emt 0:02:17]} b6 {[%emt 0:02:39]} 5. c4 {[%emt 0:06:00]} e6 {[%emt 0:04:51]} 6. O-O {[%emt 0:03:23]} Bd6 {[%emt 0:04:24]} 7. Nc3 {[%emt 0:06:17]} Bb7 {[%emt 0:05:28]} 8. cxd5 {[%emt 0:01:59]} exd5 {[%emt 0:03:47]} 9. Bg5 {[%emt 0:03:37]} Be7 {[%emt 0:03:37]} 10. Rc1 {[%emt 0:07:02]} O-O {[%emt 0:05:31]} 11. Ne5 {[%emt 0:20:23]} Nb4 {[%emt 0:17:48]} 12. a3 {[%emt 0:04:27]} Na6 {[%emt 0:00:54]} 13. Qb3 {[%emt 0:02:03]} Re8 {[%emt 0:12:29]} 14. Rfe1 {[%emt 0:07:04]} Ne4 {[%emt 0:09:19]} 15. Nxe4 {[%emt 0:03:42]} dxe4 {[%emt 0:00:02]} 16. Nxf7 {[%emt 0:06:26]} Qd5 {[%emt 0:02:49]} 17. Qxd5 {[%emt 0:01:37]} Bxd5 {[%emt 0:00:02]} 18. Bxe7 {[%emt 0:00:11]} Rxe7 {[%emt 0:00:55]} 19. Ne5 {[%emt 0:02:55]} c5 {[%emt 0:03:11]} 20. e3 {[%emt 0:00:08]} Rc8 {[%emt 0:03:20]} 21. Bf1 {[%emt 0:01:59]} Nc7 {[%emt 0:03:04]} 22. Bc4 {[%emt 0:01:22]} b5 {[%emt 0:01:41]} 23. Bxd5+ {[%emt 0:00:53]} Nxd5 {[%emt 0:00:01]} 24. Rc2 {[%emt 0:01:57]} a5 {[%emt 0:01:56]} 25. Rec1 {[%emt 0:01:30]} c4 {[%emt 0:02:11]} 26. a4 {[%emt 0:01:00]} Nb4 {[%emt 0:02:00]} 27. Re2 {[%emt 0:00:36]} Nd3 {[%emt 0:01:31]} 28. Nxd3 {[%emt 0:01:38]} exd3 {[%emt 0:00:02]} 29. Rd2 {[%emt 0:00:01]} b4 {[%emt 0:05:28]} 30. Rxd3 {[%emt 0:00:41]} Rec7 {[%emt 0:03:28]} 31. Rd2 {[%emt 0:00:53]} c3 {[%emt 0:00:42]} 32. bxc3 {[%emt 0:04:49]} b3 {[%emt 0:01:24]} 33. d5 {[%emt 0:01:49]} Rc4 {[%emt 0:00:55]} 34. d6 {[%emt 0:02:37]} Rxa4 {[%emt 0:00:42]} 35. d7 {[%emt 0:00:06]} Rd8 {[%emt 0:00:03]} 36. c4 {[%emt 0:00:24]} Rb4 {[%emt 0:00:20]} 37. c5 {[%emt 0:00:34]} b2 {[%emt 0:00:23]} 38. Rb1 {[%emt 0:00:26]} Rc4 {[%emt 0:00:38]} 39. Rbxb2 {[%emt 0:02:16]} Rxc5 {[%emt 0:00:12]} 40. Rb7 {[%emt 0:00:00]} a4 {[%emt 0:00:00]} 41. Ra7 {[%emt 0:01:07]} Rc4 {[%emt 0:02:24]} 42. Ra2 {[%emt 0:01:54]} Kf7 {[%emt 0:00:42]} 43. Kg2 {[%emt 0:00:26]} Ke7 {[%emt 0:00:26]} 44. R2xa4 {[%emt 0:00:18]} Rxa4 {[%emt 0:00:19]} 45. Rxa4 {[%emt 0:00:03]} Rxd7 {[%emt 0:00:11]} 46. Ra6 {[%emt 0:00:05]} Kf7 {[%emt 0:00:35]} 47. Kf3 {[%emt 0:02:59]} Rd3 {[%emt 0:00:45]} 48. h4 {[%emt 0:00:38]} Rb3 {[%emt 0:00:25]} 49. g4 {[%emt 0:00:19]} Rb2 {[%emt 0:00:21]} 50. h5 {[%emt 0:00:31]} h6 {[%emt 0:00:47]} 51. Kg3 {[%emt 0:00:42]} Rb1 {[%emt 0:01:01]} 52. Kf4 {[%emt 0:01:08]} Rb5 {[%emt 0:01:09]} 53. e4 {[%emt 0:00:53]} Rb3 {[%emt 0:00:38]} 54. f3 {[%emt 0:00:33]} Rb5 {[%emt 0:00:53]} 55. e5 {[%emt 0:00:43]} Rb3 {[%emt 0:00:10]} 56. Ke4 {[%emt 0:00:09]} Rc3 {[%emt 0:00:13]} 57. f4 {[%emt 0:00:31]} Rc5 {[%emt 0:00:29]} 58. Ra7+ {[%emt 0:01:01]} Kf8 {[%emt 0:00:22]} 59. Kf5 {[%emt 0:00:24]} Rc6 {[%emt 0:00:12]} 60. Rd7 {[%emt 0:02:38]} Ra6 {[%emt 0:00:14]} 61. Rd6 {[%emt 0:02:27]} Ra5 {[%emt 0:00:24]} 62. Rb6 {[%emt 0:01:28]} Kf7 {[%emt 0:00:26]} 63. Rg6 {[%emt 0:02:16]} Rb5 {[%emt 0:00:16]} 64. Ra6 {[%emt 0:02:36]} Rc5 {[%emt 0:00:29]} 65. g5 {[%emt 0:02:08]} hxg5 {[%emt 0:00:16]} 66. fxg5 {[%emt 0:00:13]} Rb5 {[%emt 0:00:27]} 67. Ra7+ {[%emt 0:00:14]} Kf8 {[%emt 0:00:06]} 68. Rd7 {[%emt 0:01:21]} Ra5 {[%emt 0:00:10]} 69. g6 {[%emt 0:02:39]} Ra6 {[%emt 0:00:20]} 70. Rd8+ {[%emt 0:00:49]} Ke7 {[%emt 0:00:07]} 71. Rg8 {[%emt 0:00:13]} 1-0

[Event "Polish Youth G18 Championship 2023"]
[Site "Jastrzebia Gora"]
[Date "2023.03.15"]
[Round "5.13"]
[White "Bychowska, Marta"]
[Black "Krzyzosiak, Anna"]
[Result "1/2-1/2"]
[ECO "B92"]
[WhiteElo "1388"]
[BlackElo "1503"]
[Annotator "NA RC COMBH"]
[PlyCount "73"]
[EventDate "2023.03.11"]
[EventType "swiss"]
[EventCountry "POL"]
[SourceTitle "playchess.com"]
[Source "ChessBase"]
[SourceQuality "1"]
[TimeControl "40/5400+30:1800+30"]

1. e4 {[%emt 0:00:03]} c5 {[%emt 0:00:05]} 2. Nf3 {[%emt 0:00:04]} d6 {[%emt 0:00:06]} 3. d4 {[%emt 0:00:04]} cxd4 {[%emt 0:00:05]} 4. Nxd4 {[%emt 0:00:04]} Nf6 {[%emt 0:00:09]} 5. Nc3 {[%emt 0:00:06]} a6 {[%emt 0:00:09]} 6. Be2 {[%emt 0:00:18]} e5 {[%emt 0:00:19]} 7. Nb3 {[%emt 0:00:08]} Be7 {[%emt 0:00:30]} 8. O-O {[%emt 0:00:11]} O-O {[%emt 0:01:17]} 9. Be3 {[%emt 0:01:01]} Be6 {[%emt 0:05:52]} 10. f3 {[%emt 0:00:40]} d5 {[%emt 0:13:40]} 11. exd5 {[%emt 0:00:19]} Nxd5 {[%emt 0:00:27]} 12. Nxd5 {[%emt 0:00:10]} Bxd5 {[%emt 0:00:27]} 13. c4 {[%emt 0:01:55]} Be6 {[%emt 0:16:36]} 14. Qxd8 {[%emt 0:00:20]} Rxd8 {[%emt 0:01:27]} 15. Nc5 {[%emt 0:01:35]} Bc8 {[%emt 0:10:29]} 16. Rfd1 {[%emt 0:01:49]} Nc6 {[%emt 0:05:33]} 17. Rxd8+ {[%emt 0:08:04]} Bxd8 {[%emt 0:05:32]} 18. Ne4 {[%emt 0:10:05]} b6 {[%emt 0:05:42]} 19. Rd1 {[%emt 0:04:03]} Bc7 {[%emt 0:08:31]} 20. Nc3 {[%emt 0:04:06]} Be6 {[%emt 0:05:12]} 21. Nd5 {[%emt 0:01:43]} Bxd5 {[%emt 0:00:33]} 22. cxd5 {[%emt 0:05:27]} Nd4 {[%emt 0:01:46]} 23. Bxd4 {[%emt 0:00:26]} exd4 {[%emt 0:00:06]} 24. Rxd4 {[%emt 0:00:11]} Bd6 {[%emt 0:00:42]} 25. Rc4 {[%emt 0:01:10]} Bc5+ {[%emt 0:03:03]} 26. Kf1 {[%emt 0:00:10]} a5 {[%emt 0:00:52]} 27. Bd3 {[%emt 0:01:53]} Rd8 {[%emt 0:02:15]} 28. Be4 {[%emt 0:00:23]} g6 {[%emt 0:01:41]} 29. g4 {[%emt 0:00:24]} Kg7 {[%emt 0:01:56]} 30. f4 {[%emt 0:02:50]} f5 {[%emt 0:01:21]} 31. gxf5 {[%emt 0:00:21]} gxf5 {[%emt 0:00:05]} 32. Bf3 {[%emt 0:02:02]} Re8 {[%emt 0:03:55]} 33. Kg2 {[%emt 0:02:30]} Re1 {[%emt 0:01:49]} 34. h3 {[%emt 0:01:28]} Rb1 {[%emt 0:01:15]} 35. Rc2 {[%emt 0:02:01]} Rg1+ {[%emt 0:00:10]} 36. Kh2 {[%emt 0:00:22]} Rf1 {[%emt 0:00:45]} 37. Kg2 {[%emt 0:01:28]} 1/2-1/2

[Event "Polish Youth G18 Championship 2023"]
[Site "Jastrzebia Gora"]
[Date "2023.03.15"]
[Round "5.14"]
[White "Kaznowska, Kinga"]
[Black "Lochina, Justyna"]
[Result "0-1"]
[ECO "B80"]
[WhiteElo "1352"]
[BlackElo "1645"]
[Annotator "NA RC COMBH"]
[PlyCount "88"]
[EventDate "2023.03.11"]
[EventType "swiss"]
[EventCountry "POL"]
[SourceTitle "playchess.com"]
[Source "ChessBase"]
[SourceQuality "1"]
[TimeControl "40/5400+30:1800+30"]

1. e4 {[%emt 0:00:02]} c5 {[%emt 0:00:13]} 2. Nf3 {[%emt 0:00:06]} e6 {[%emt 0:00:23]} 3. d4 {[%emt 0:00:05]} cxd4 {[%emt 0:00:11]} 4. Nxd4 {[%emt 0:00:04]} Nf6 {[%emt 0:01:05]} 5. Nc3 {[%emt 0:00:09]} d6 {[%emt 0:00:17]} 6. Bg5 {[%emt 0:01:04]} Be7 {[%emt 0:06:13]} 7. Bb5+ {[%emt 0:07:11]} Nbd7 {[%emt 0:17:44]} 8. Nf3 {[%emt 0:06:02]} O-O {[%emt 0:05:03]} 9. O-O {[%emt 0:00:24]} Qc7 {[%emt 0:04:07]} 10. Re1 {[%emt 0:04:00]} a6 {[%emt 0:08:20]} 11. Bxd7 {[%emt 0:01:00]} Bxd7 {[%emt 0:00:56]} 12. e5 {[%emt 0:00:45]} dxe5 {[%emt 0:02:06]} 13. Nxe5 {[%emt 0:00:20]} Bc6 {[%emt 0:04:33]} 14. Bf4 {[%emt 0:03:12]} Qb6 {[%emt 0:06:55]} 15. Rb1 {[%emt 0:06:06]} Rac8 {[%emt 0:05:05]} 16. Be3 {[%emt 0:01:31]} Qc7 {[%emt 0:01:44]} 17. Nd3 {[%emt 0:03:42]} b5 {[%emt 0:02:38]} 18. a3 {[%emt 0:01:09]} Qb7 {[%emt 0:03:08]} 19. f3 {[%emt 0:02:37]} a5 {[%emt 0:02:34]} 20. Qe2 {[%emt 0:05:59]} b4 {[%emt 0:02:07]} 21. axb4 {[%emt 0:00:13]} axb4 {[%emt 0:00:15]} 22. Na2 {[%emt 0:01:27]} Bd5 {[%emt 0:04:46]} 23. b3 {[%emt 0:06:02]} Bd6 {[%emt 0:02:24]} 24. Qd2 {[%emt 0:03:09]} Qc7 {[%emt 0:02:20]} 25. Naxb4 {[%emt 0:02:15]} Bxh2+ {[%emt 0:00:35]} 26. Kh1 {[%emt 0:00:47]} Nh5 {[%emt 0:10:05]} 27. Bf2 {[%emt 0:06:52]} Ng3+ {[%emt 0:03:27]} 28. Bxg3 {[%emt 0:00:33]} Qxg3 {[%emt 0:00:29]} 29. Qf2 {[%emt 0:01:01]} Rfd8 {[%emt 0:01:43]} 30. Qxg3 {[%emt 0:01:56]} Bxg3 {[%emt 0:00:17]} 31. Rec1 {[%emt 0:03:01]} e5 {[%emt 0:02:39]} 32. Kg1 {[%emt 0:02:43]} Be6 {[%emt 0:00:44]} 33. Ra1 {[%emt 0:02:14]} Bf5 {[%emt 0:01:00]} 34. Nb2 {[%emt 0:04:00]} Bf4 {[%emt 0:00:26]} 35. Rd1 {[%emt 0:00:24]} Be3+ {[%emt 0:00:33]} 36. Kf1 {[%emt 0:00:43]} Bd4 {[%emt 0:00:15]} 37. Rab1 {[%emt 0:07:57]} Bxc2 {[%emt 0:00:26]} 38. Nxc2 {[%emt 0:00:14]} Rxc2 {[%emt 0:00:06]} 39. Nd3 {[%emt 0:00:16]} Ra8 {[%emt 0:01:14]} 40. b4 {[%emt 0:00:00]} f6 {[%emt 0:00:00]} 41. b5 {[%emt 0:02:38]} Raa2 {[%emt 0:10:38]} 42. Nc1 {[%emt 0:05:38]} Rf2+ {[%emt 0:03:40]} 43. Ke1 {[%emt 0:00:55]} Bc3+ {[%emt 0:01:01]} 44. Rd2 {[%emt 0:00:54]} Raxd2 {[%emt 0:00:51]} 0-1

[Event "Polish Youth G18 Championship 2023"]
[Site "Jastrzebia Gora"]
[Date "2023.03.15"]
[Round "5.15"]
[White "Trybus, Dominika"]
[Black "Czerwinska, Oliwia"]
[Result "0-1"]
[ECO "D00"]
[WhiteElo "1543"]
[BlackElo "1369"]
[Annotator "NA RC COMBH"]
[PlyCount "152"]
[EventDate "2023.03.11"]
[EventType "swiss"]
[EventCountry "POL"]
[SourceTitle "playchess.com"]
[Source "ChessBase"]
[SourceQuality "1"]
[TimeControl "40/5400+30:1800+30"]

1. d4 d5 2. Bf4 Nf6 3. e3 Bf5 4. c4 e6 5. Nc3 c6 6. c5 Nbd7 7. Nf3 b5 8. Bd3 Bxd3 9. Qxd3 a6 10. O-O Nh5 11. Be5 f6 12. Bg3 Nxg3 13. hxg3 f5 14. Nd2 Qg5 15. Ne2 Be7 16. f3 O-O 17. Kf2 e5 18. Rh1 e4 19. Qc2 h6 20. Nf4 Qf6 21. Rh2 g5 22. Ne2 Kg7 23. Rah1 Rh8 24. Ke1 Raf8 25. g4 fxg4 26. fxe4 Qf2+ 27. Kd1 Qxe3 28. exd5 cxd5 29. Re1 Bd8 30. g3 Qe8 31. Nf4 Qxe1+ 32. Kxe1 gxf4 33. gxf4 Rxf4 34. c6 Nb6 35. c7 Bg5 36. Rf2 Bh4 37. Qc5 Bxf2+ 38. Ke2 Re8+ 39. Kd1 Bxd4 40. Qd6 Rf7 41. Qg3 h5 42. Qh2 Kg6 43. Qd6+ Kg5 44. Qd8+ Rfe7 45. Nb3 Be5 46. c8=Q Nxc8 47. Qxd5 Nb6 48. Qc6 Re6 49. Qc1+ Bf4 50. Qc5+ Kg6 51. Qc2+ Kh6 52. Qf5 Rd6+ 53. Kc2 Rc8+ 54. Nc5 Be3 55. b4 Rdc6 56. Kb1 Na4 57. a3 Nxc5 58. bxc5 Bg5 59. Ka2 g3 60. Qe4 h4 61. Qg4 g2 62. Qxg2 Rxc5 63. Qg4 Rc2+ 64. Kb1 Rc1+ 65. Ka2 R8c2+ 66. Kb3 Rc3+ 67. Ka2 Rc6 68. Qf5 Rf6 69. Qh3 a5 70. Kb3 Rcf1 71. Qc8 R1f3+ 72. Ka2 Rf2+ 73. Kb1 Rd2 74. Qh8+ Kg6 75. Qg8+ Kh5 76. Qh7+ Bh6 0-1

[Event "Polish Youth G18 Championship 2023"]
[Site "Jastrzebia Gora"]
[Date "2023.03.15"]
[Round "5.16"]
[White "Bartoszek, Julia"]
[Black "Pietrzak, Emilia"]
[Result "1-0"]
[ECO "D58"]
[WhiteElo "1344"]
[BlackElo "1424"]
[Annotator "NA RC COMBH"]
[PlyCount "115"]
[EventDate "2023.03.11"]
[EventType "swiss"]
[EventCountry "POL"]
[SourceTitle "playchess.com"]
[Source "ChessBase"]
[SourceQuality "1"]
[TimeControl "40/5400+30:1800+30"]

1. d4 {[%emt 0:00:03]} d5 {[%emt 0:00:04]} 2. c4 e6 {[%emt 0:00:06]} 3. Nf3 {[%emt 0:00:40]} Nf6 {[%emt 0:00:05]} 4. Bg5 {[%emt 0:01:30]} Be7 {[%emt 0:00:32]} 5. Nc3 {[%emt 0:00:41]} O-O {[%emt 0:00:55]} 6. e3 {[%emt 0:01:33]} h6 {[%emt 0:01:01]} 7. Bh4 {[%emt 0:00:28]} b6 {[%emt 0:00:58]} 8. Be2 {[%emt 0:00:50]} Bb7 {[%emt 0:00:28]} 9. O-O {[%emt 0:01:08]} c5 {[%emt 0:03:12]} 10. cxd5 {[%emt 0:01:37]} Nxd5 {[%emt 0:06:06]} 11. Bxe7 {[%emt 0:01:55]} Qxe7 {[%emt 0:00:34]} 12. Nxd5 {[%emt 0:05:56]} exd5 {[%emt 0:02:07]} 13. Rc1 {[%emt 0:02:05]} Nd7 {[%emt 0:04:12]} 14. Qb3 {[%emt 0:04:22]} Nf6 {[%emt 0:10:17]} 15. Qa3 {[%emt 0:05:25]} Rfc8 {[%emt 0:08:03]} 16. Rc2 {[%emt 0:05:16]} Kf8 {[%emt 0:07:58]} 17. Rfc1 {[%emt 0:01:57]} c4 {[%emt 0:09:35]} 18. Qxe7+ {[%emt 0:01:43]} Kxe7 {[%emt 0:00:01]} 19. Nh4 {[%emt 0:02:30]} g6 {[%emt 0:06:49]} 20. Bf3 {[%emt 0:05:11]} b5 {[%emt 0:02:52]} 21. b3 {[%emt 0:04:30]} cxb3 {[%emt 0:04:40]} 22. axb3 {[%emt 0:00:35]} b4 {[%emt 0:01:56]} 23. g3 {[%emt 0:08:38]} Rxc2 {[%emt 0:05:12]} 24. Rxc2 {[%emt 0:00:06]} Rc8 {[%emt 0:00:36]} 25. Rxc8 {[%emt 0:01:08]} Bxc8 {[%emt 0:00:01]} 26. Kf1 {[%emt 0:00:47]} g5 {[%emt 0:04:31]} 27. Ng2 {[%emt 0:00:53]} Bh3 {[%emt 0:01:30]} 28. Bd1 {[%emt 0:01:49]} Ng4 {[%emt 0:02:38]} 29. Kg1 {[%emt 0:02:04]} Kd6 {[%emt 0:02:07]} 30. Ne1 {[%emt 0:00:56]} Nf6 {[%emt 0:01:44]} 31. Nd3 {[%emt 0:00:57]} a5 {[%emt 0:00:47]} 32. Ne5 {[%emt 0:01:11]} Be6 {[%emt 0:00:59]} 33. f3 {[%emt 0:01:50]} Nd7 {[%emt 0:01:13]} 34. Nd3 {[%emt 0:01:33]} Bf5 {[%emt 0:00:47]} 35. Nf2 {[%emt 0:00:57]} Bb1 {[%emt 0:03:07]} 36. Kf1 {[%emt 0:00:46]} Nb6 {[%emt 0:01:32]} 37. Ke2 {[%emt 0:01:45]} a4 {[%emt 0:05:04]} 38. bxa4 {[%emt 0:00:46]} Nc4 {[%emt 0:00:56]} 39. Nd3 {[%emt 0:02:36]} Bxd3+ {[%emt 0:03:20]} 40. Kxd3 {[%emt 0:00:00]} Nb2+ {[%emt 0:00:00]} 41. Ke2 {[%emt 0:03:02]} Nc4 {[%emt 0:14:36]} 42. e4 {[%emt 0:02:14]} f6 {[%emt 0:00:34]} 43. Bb3 {[%emt 0:06:05]} Na5 {[%emt 0:00:48]} 44. Bxd5 {[%emt 0:00:28]} f5 {[%emt 0:02:34]} 45. Bg8 {[%emt 0:01:48]} b3 {[%emt 0:02:24]} 46. e5+ {[%emt 0:03:27]} Ke7 {[%emt 0:00:13]} 47. Kd2 {[%emt 0:01:33]} b2 {[%emt 0:01:14]} 48. Kc2 {[%emt 0:01:33]} b1=Q+ {[%emt 0:00:44]} 49. Kxb1 {[%emt 0:00:13]} Nc6 {[%emt 0:00:02]} 50. a5 {[%emt 0:02:43]} Nxa5 {[%emt 0:01:02]} 51. Kc2 {[%emt 0:00:25]} Nc6 {[%emt 0:02:39]} 52. Kc3 {[%emt 0:00:49]} h5 {[%emt 0:01:24]} 53. f4 {[%emt 0:01:49]} h4 {[%emt 0:01:09]} 54. d5 {[%emt 0:02:23]} Nd8 {[%emt 0:01:10]} 55. Bh7 {[%emt 0:00:37]} Nf7 {[%emt 0:00:39]} 56. Bxf5 {[%emt 0:00:42]} Nh6 {[%emt 0:00:08]} 57. d6+ {[%emt 0:02:07]} Kd8 {[%emt 0:00:32]} 58. Be6 {[%emt 0:00:56]} 1-0

[Event "Polish Youth G18 Championship 2023"]
[Site "Jastrzebia Gora"]
[Date "2023.03.15"]
[Round "5.17"]
[White "Samol, Julia"]
[Black "Bauer, Marika"]
[Result "1-0"]
[ECO "C45"]
[WhiteElo "1374"]
[BlackElo "1183"]
[Annotator "NA RC COMBH"]
[PlyCount "95"]
[EventDate "2023.03.11"]
[EventType "swiss"]
[EventCountry "POL"]
[SourceTitle "playchess.com"]
[Source "ChessBase"]
[SourceQuality "1"]
[TimeControl "40/5400+30:1800+30"]

1. e4 e5 2. Nf3 Nc6 3. d4 exd4 4. Nxd4 Bc5 5. Nb3 Bb6 6. Nc3 a6 7. Qe2 d6 8. Be3 Bxe3 9. Qxe3 Nf6 10. O-O-O Be6 11. f4 Qe7 12. h3 h5 13. g3 O-O-O 14. Bg2 Rhe8 15. Rhe1 Nd7 16. Nd4 Nxd4 17. Qxd4 Nb6 18. a4 a5 19. Nb5 Qf6 20. Qxf6 gxf6 21. b3 Rg8 22. Re3 Rde8 23. Rc3 Rd8 24. Nxc7 Kb8 25. Nb5 d5 26. exd5 Nxd5 27. Bxd5 Rxd5 28. Rxd5 Bxd5 29. Re3 Be6 30. h4 f5 31. Nd4 Re8 32. Nxf5 Rg8 33. Nd4 Bg4 34. Nb5 Rd8 35. Nc3 Rc8 36. Kb2 Bf5 37. Re2 Bg4 38. Re5 f5 39. Rxa5 Rc6 40. Re5 Rc8 41. Nd5 Bd1 42. Ne3 Rd8 43. Nxd1 Rxd1 44. Rxf5 Rg1 45. Rg5 Kc7 46. Kc3 Kd6 47. Kb4 Rg2 48. c4 1-0

[Event "Polish Youth G18 Championship 2023"]
[Site "Jastrzebia Gora"]
[Date "2023.03.15"]
[Round "5.18"]
[White "Lopusiewicz, Marta"]
[Black "Olszewska, Wiktoria"]
[Result "0-1"]
[ECO "E73"]
[WhiteElo "1180"]
[BlackElo "1287"]
[Annotator "NA RC COMBH"]
[PlyCount "56"]
[EventDate "2023.03.11"]
[EventType "swiss"]
[EventCountry "POL"]
[SourceTitle "playchess.com"]
[Source "ChessBase"]
[SourceQuality "1"]
[TimeControl "40/5400+30:1800+30"]

1. d4 {[%emt 0:00:02]} Nf6 {[%emt 0:01:07]} 2. c4 {[%emt 0:00:18]} g6 {[%emt 0:01:00]} 3. Nc3 {[%emt 0:00:17]} Bg7 {[%emt 0:00:11]} 4. e4 {[%emt 0:00:12]} d6 {[%emt 0:00:36]} 5. Be2 {[%emt 0:01:23]} O-O {[%emt 0:02:03]} 6. Bg5 {[%emt 0:00:17]} Nc6 {[%emt 0:05:51]} 7. Qd2 {[%emt 0:02:00]} Bd7 {[%emt 0:06:34]} 8. h3 {[%emt 0:10:42]} e5 {[%emt 0:08:11]} 9. d5 {[%emt 0:01:29]} Ne7 {[%emt 0:01:47]} 10. g4 {[%emt 0:02:33]} Ne8 {[%emt 0:16:22]} 11. Bd3 {[%emt 0:11:32]} c6 {[%emt 0:05:57]} 12. f3 {[%emt 0:04:39]} f6 {[%emt 0:15:31]} 13. Be3 {[%emt 0:08:43]} Nc7 {[%emt 0:04:48]} 14. b3 {[%emt 0:16:02]} cxd5 {[%emt 0:03:54]} 15. cxd5 {[%emt 0:00:19]} Qe8 {[%emt 0:01:45]} 16. Bh6 {[%emt 0:07:53]} Nb5 {[%emt 0:04:14]} 17. Bxg7 {[%emt 0:00:48]} Kxg7 {[%emt 0:00:08]} 18. Nge2 {[%emt 0:01:37]} Rc8 {[%emt 0:01:59]} 19. Nxb5 {[%emt 0:04:37]} Bxb5 {[%emt 0:00:07]} 20. Nc3 {[%emt 0:00:05]} Bxd3 {[%emt 0:03:16]} 21. Qxd3 {[%emt 0:00:07]} Qd7 {[%emt 0:00:53]} 22. Ke2 {[%emt 0:03:03]} g5 {[%emt 0:01:58]} 23. h4 {[%emt 0:02:35]} gxh4 {[%emt 0:01:21]} 24. Nd1 {[%emt 0:03:20]} Ng6 {[%emt 0:01:48]} 25. Kd2 {[%emt 0:01:31]} Nf4 {[%emt 0:01:15]} 26. Qe3 {[%emt 0:02:23]} Qc7 {[%emt 0:03:18]} 27. Qxa7 {[%emt 0:01:06]} Qc2+ {[%emt 0:00:18]} 28. Ke3 {[%emt 0:00:52]} Qe2# {[%emt 0:00:09]} 0-1

[Event "Polish Youth G18 Championship 2023"]
[Site "Jastrzebia Gora"]
[Date "2023.03.15"]
[Round "5.19"]
[White "Pietruszka, Julia"]
[Black "Sivickis, Kornelia"]
[Result "1/2-1/2"]
[ECO "B21"]
[WhiteElo "1151"]
[BlackElo "1328"]
[Annotator "NA RC COMBH"]
[PlyCount "70"]
[EventDate "2023.03.11"]
[EventType "swiss"]
[EventCountry "POL"]
[SourceTitle "playchess.com"]
[Source "ChessBase"]
[SourceQuality "1"]
[TimeControl "40/5400+30:1800+30"]

1. e4 {[%emt 0:00:01]} c5 {[%emt 0:00:07]} 2. f4 {[%emt 0:00:08]} d5 {[%emt 0:00:06]} 3. d3 {[%emt 0:00:46]} e6 {[%emt 0:00:21]} 4. Nf3 {[%emt 0:01:59]} dxe4 {[%emt 0:01:20]} 5. dxe4 {[%emt 0:00:15]} Qxd1+ {[%emt 0:02:12]} 6. Kxd1 {[%emt 0:00:06]} Nf6 {[%emt 0:00:04]} 7. Bd3 {[%emt 0:02:06]} Be7 {[%emt 0:00:37]} 8. h3 {[%emt 0:06:06]} h5 {[%emt 0:02:14]} 9. c3 {[%emt 0:02:37]} a6 {[%emt 0:00:34]} 10. Kc2 {[%emt 0:06:48]} Nc6 {[%emt 0:01:15]} 11. a4 {[%emt 0:05:14]} Bd7 {[%emt 0:03:53]} 12. Nbd2 {[%emt 0:05:38]} Na5 {[%emt 0:07:43]} 13. Re1 {[%emt 0:08:13]} O-O {[%emt 0:03:21]} 14. f5 {[%emt 0:04:14]} Rfe8 {[%emt 0:02:31]} 15. Ne5 {[%emt 0:02:29]} exf5 {[%emt 0:04:17]} 16. Nxd7 {[%emt 0:01:57]} Nxd7 {[%emt 0:00:07]} 17. exf5 {[%emt 0:00:19]} Bh4 {[%emt 0:02:34]} 18. Rxe8+ {[%emt 0:01:27]} Rxe8 {[%emt 0:00:02]} 19. Nf3 {[%emt 0:02:49]} Bf6 {[%emt 0:00:44]} 20. Bg5 {[%emt 0:06:14]} c4 {[%emt 0:02:58]} 21. Bf1 {[%emt 0:05:38]} Bxg5 {[%emt 0:01:49]} 22. Nxg5 {[%emt 0:00:07]} Nc5 {[%emt 0:01:16]} 23. Rd1 {[%emt 0:07:15]} f6 {[%emt 0:06:25]} 24. Rd5 {[%emt 0:08:49]} b6 {[%emt 0:01:46]} 25. Ne6 {[%emt 0:02:19]} Nxe6 {[%emt 0:01:10]} 26. fxe6 {[%emt 0:00:13]} Rxe6 {[%emt 0:00:57]} 27. Rxa5 {[%emt 0:00:25]} bxa5 {[%emt 0:00:36]} 28. Bxc4 {[%emt 0:00:06]} Kf7 {[%emt 0:00:06]} 29. Bxe6+ {[%emt 0:00:03]} Kxe6 {[%emt 0:00:16]} 30. Kd3 {[%emt 0:00:11]} Kd5 {[%emt 0:01:58]} 31. b3 {[%emt 0:03:23]} g6 {[%emt 0:02:05]} 32. Ke3 {[%emt 0:02:34]} Ke5 {[%emt 0:12:09]} 33. b4 {[%emt 0:03:18]} axb4 {[%emt 0:02:01]} 34. cxb4 {[%emt 0:00:22]} Kd5 {[%emt 0:00:47]} 35. b5 {[%emt 0:06:40]} Ke5 1/2-1/2